[Event "*** SCC Grand Prix: Titled Tuesday Blitz"]
[Site "Chess.com"]
[Date "2020.07.07"]
[Round "9"]
[White "mfwagnerpeixoto"]
[Black "mr65"]
[Result "0-1"]
[WhiteElo "2203"]
[BlackElo "2111"]
[TimeControl "180+1"]
[EndTime "11:46:58 PDT"]
[Termination "mr65 won on time"]

1. e4 {[%clk 0:03:00.9]} 1... e5 {[%clk 0:02:58.8]} 2. Nf3 {[%clk 0:02:59.9]}
2... Nc6 {[%clk 0:02:58.6]} 3. d4 {[%clk 0:02:58.3]} 3... exd4 {[%clk
0:02:57.8]} 4. Bc4 {[%clk 0:02:57.9]} 4... Nf6 {[%clk 0:02:56.1]} 5. O-O {[%clk
0:02:55.7]} 5... Nxe4 {[%clk 0:02:55.3]} 6. Re1 {[%clk 0:02:55.4]} 6... d5
{[%clk 0:02:54.3]} 7. Bxd5 {[%clk 0:02:55.5]} 7... Qxd5 {[%clk 0:02:54]} 8. Nc3
{[%clk 0:02:56]} 8... Qa5 {[%clk 0:02:53.6]} 9. Nxe4 {[%clk 0:02:55.6]} 9... Be6
{[%clk 0:02:53.5]} 10. Bd2 {[%clk 0:02:55]} 10... Bb4 {[%clk 0:02:51.1]} 11.
Bxb4 {[%clk 0:02:50.3]} 11... Qxb4 {[%clk 0:02:49.4]} 12. Neg5 {[%clk
0:02:48.7]} 12... O-O-O {[%clk 0:02:48.6]} 13. Nxe6 {[%clk 0:02:39.8]} 13...
fxe6 {[%clk 0:02:47.5]} 14. Rxe6 {[%clk 0:02:40.7]} 14... Rde8 {[%clk
0:02:43.6]} 15. Qe2 {[%clk 0:02:14.4]} 15... Kd7 {[%clk 0:02:42.5]} 16. Re1
{[%clk 0:02:01.1]} 16... Qxe1+ {[%clk 0:02:41.2]} 17. Qxe1 {[%clk 0:02:01]}
17... Rxe6 {[%clk 0:02:41.2]} 18. Qd2 {[%clk 0:02:00.4]} 18... Rhe8 {[%clk
0:02:40.4]} 19. g3 {[%clk 0:01:44]} 19... Kc8 {[%clk 0:02:29.6]} 20. Qd3 {[%clk
0:01:38]} 20... g6 {[%clk 0:02:25.7]} 21. a3 {[%clk 0:01:37.3]} 21... Ne5 {[%clk
0:02:16]} 22. Nxe5 {[%clk 0:01:35.3]} 22... Rxe5 {[%clk 0:02:15.7]} 23. Qxd4
{[%clk 0:01:35.5]} 23... Re1+ {[%clk 0:02:12.9]} 24. Kg2 {[%clk 0:01:35.6]}
24... R1e2 {[%clk 0:02:12.1]} 25. c4 {[%clk 0:01:25.2]} 25... Kb8 {[%clk
0:02:03.4]} 26. Qd7 {[%clk 0:01:19.5]} 26... Rf8 {[%clk 0:02:00.2]} 27. Kh3
{[%clk 0:01:02.6]} 27... Rexf2 {[%clk 0:01:54.4]} 28. Qxh7 {[%clk 0:00:53.4]}
28... Rxb2 {[%clk 0:01:49.3]} 29. Kg4 {[%clk 0:00:38]} 29... Rb6 {[%clk
0:01:28.1]} 30. Qe7 {[%clk 0:00:21.5]} 30... Rh8 {[%clk 0:01:21.1]} 31. h4
{[%clk 0:00:19.8]} 31... a6 {[%clk 0:01:19.9]} 32. a4 {[%clk 0:00:17.7]} 32...
Rc6 {[%clk 0:01:16.7]} 33. Qf7 {[%clk 0:00:14.9]} 33... Rd8 {[%clk 0:01:10]} 34.
Kg5 {[%clk 0:00:13.6]} 34... b6 {[%clk 0:00:40]} 35. g4 {[%clk 0:00:11.9]} 35...
Kb7 {[%clk 0:00:37.4]} 36. Qf3 {[%clk 0:00:08.9]} 36... Rd4 {[%clk 0:00:33.9]}
37. h5 {[%clk 0:00:06.1]} 37... gxh5 {[%clk 0:00:32.2]} 38. gxh5 {[%clk
0:00:06]} 38... Rd6 {[%clk 0:00:29.6]} 39. Qe4 {[%clk 0:00:03.1]} 39... a5
{[%clk 0:00:28.3]} 40. h6 {[%clk 0:00:03]} 40... Rxh6 {[%clk 0:00:26.6]} 41. c5
{[%clk 0:00:03.6]} 41... Re6 {[%clk 0:00:23.8]} 42. Qd5 {[%clk 0:00:03.4]} 42...
Ka7 {[%clk 0:00:16.5]} 43. Kf5 {[%clk 0:00:03.5]} 43... Rxc5 {[%clk 0:00:15.9]}
44. Kxe6 {[%clk 0:00:02.2]} 44... Rxd5 {[%clk 0:00:15.2]} 45. Kxd5 {[%clk
0:00:03.1]} 45... Kb7 {[%clk 0:00:15.2]} 0-1

[Event "*** SCC Grand Prix: Titled Tuesday Blitz"]
[Site "Chess.com"]
[Date "2020.07.07"]
[Round "9"]
[White "Quattroporte300"]
[Black "bratkoo"]
[Result "1-0"]
[WhiteElo "2302"]
[BlackElo "2425"]
[TimeControl "180+1"]
[EndTime "11:46:59 PDT"]
[Termination "Quattroporte300 won by checkmate"]

1. e4 {[%clk 0:03:00.9]} 1... e6 {[%clk 0:02:56.2]} 2. d4 {[%clk 0:03:00.4]}
2... d5 {[%clk 0:02:55.9]} 3. Nd2 {[%clk 0:03:00.8]} 3... Nf6 {[%clk 0:02:54.1]}
4. e5 {[%clk 0:03:01]} 4... Nfd7 {[%clk 0:02:54.7]} 5. Bd3 {[%clk 0:03:01.3]}
5... c5 {[%clk 0:02:55.4]} 6. c3 {[%clk 0:03:01.8]} 6... Nc6 {[%clk 0:02:56.3]}
7. Ne2 {[%clk 0:03:01.6]} 7... cxd4 {[%clk 0:02:57]} 8. cxd4 {[%clk 0:03:01.4]}
8... f6 {[%clk 0:02:57.7]} 9. O-O {[%clk 0:03:01.6]} 9... fxe5 {[%clk
0:02:57.6]} 10. dxe5 {[%clk 0:02:41.1]} 10... Ndxe5 {[%clk 0:02:57]} 11. Bb5
{[%clk 0:02:41.4]} 11... Bd6 {[%clk 0:02:56]} 12. f4 {[%clk 0:02:17.3]} 12...
Ng4 {[%clk 0:02:54.5]} 13. Nf3 {[%clk 0:02:14.1]} 13... Qb6+ {[%clk 0:02:53.4]}
14. Nfd4 {[%clk 0:02:04.1]} 14... O-O {[%clk 0:02:52.1]} 15. Kh1 {[%clk
0:01:48.7]} 15... Nxd4 {[%clk 0:02:28.8]} 16. Nxd4 {[%clk 0:01:48.2]} 16... e5
{[%clk 0:02:19.5]} 17. Be2 {[%clk 0:01:35.1]} 17... Qxd4 {[%clk 0:02:09.6]} 18.
Bxg4 {[%clk 0:01:30.8]} 18... Qxd1 {[%clk 0:02:09]} 19. Bxd1 {[%clk 0:01:30]}
19... exf4 {[%clk 0:02:08.8]} 20. Bb3 {[%clk 0:01:22.4]} 20... Be6 {[%clk
0:02:08.5]} 21. Bd2 {[%clk 0:01:21.8]} 21... Rad8 {[%clk 0:02:04.2]} 22. Rae1
{[%clk 0:01:20.4]} 22... Rf6 {[%clk 0:01:33]} 23. Rxe6 {[%clk 0:01:16.9]} 23...
Rxe6 {[%clk 0:01:33]} 24. Bxd5 {[%clk 0:01:17.5]} 24... Kf7 {[%clk 0:01:33.2]}
25. g3 {[%clk 0:00:57.7]} 25... Be5 {[%clk 0:01:25.4]} 26. Bxe6+ {[%clk
0:00:57]} 26... Kxe6 {[%clk 0:01:25.3]} 27. Bxf4 {[%clk 0:00:56.9]} 27... Bxf4
{[%clk 0:01:16.5]} 28. Rxf4 {[%clk 0:00:56.8]} 28... Rd1+ {[%clk 0:01:16.4]} 29.
Kg2 {[%clk 0:00:56.8]} 29... Rd2+ {[%clk 0:01:16]} 30. Rf2 {[%clk 0:00:57.2]}
30... Rxf2+ {[%clk 0:01:03.1]} 31. Kxf2 {[%clk 0:00:57.3]} 31... Kd5 {[%clk
0:01:02.8]} 32. Ke3 {[%clk 0:00:57.1]} 32... Ke5 {[%clk 0:01:02.6]} 33. h3
{[%clk 0:00:47.3]} 33... h5 {[%clk 0:01:00.8]} 34. Kd3 {[%clk 0:00:45.5]} 34...
h4 {[%clk 0:00:57.3]} 35. gxh4 {[%clk 0:00:45.3]} 35... Kf4 {[%clk 0:00:57.7]}
36. h5 {[%clk 0:00:38.3]} 36... Kg3 {[%clk 0:00:44.4]} 37. Ke4 {[%clk 0:00:38]}
37... Kxh3 {[%clk 0:00:44.7]} 38. Kf5 {[%clk 0:00:38.1]} 38... Kh4 {[%clk
0:00:45]} 39. Kg6 {[%clk 0:00:38.3]} 39... b5 {[%clk 0:00:42.8]} 40. b4 {[%clk
0:00:37.5]} 40... Kg4 {[%clk 0:00:42.6]} 41. a3 {[%clk 0:00:35.5]} 41... Kh4
{[%clk 0:00:36.2]} 42. Kxg7 {[%clk 0:00:35.9]} 42... Kxh5 {[%clk 0:00:36.6]} 43.
Kf6 {[%clk 0:00:36.4]} 43... Kg4 {[%clk 0:00:37.2]} 44. Ke6 {[%clk 0:00:36.7]}
44... Kf4 {[%clk 0:00:37.6]} 45. Kd5 {[%clk 0:00:36.8]} 45... Ke3 {[%clk
0:00:37]} 46. Kc5 {[%clk 0:00:33.2]} 46... a6 {[%clk 0:00:36.8]} 47. Kb6 {[%clk
0:00:33.4]} 47... Kd4 {[%clk 0:00:36.6]} 48. Kxa6 {[%clk 0:00:33.8]} 48... Kc4
{[%clk 0:00:37.2]} 49. Ka5 {[%clk 0:00:33.8]} 49... Kb3 {[%clk 0:00:33.8]} 50.
Kxb5 {[%clk 0:00:34.2]} 50... Kxa3 {[%clk 0:00:30.3]} 51. Ka5 {[%clk 0:00:34.1]}
51... Kb3 {[%clk 0:00:30.7]} 52. b5 {[%clk 0:00:34.5]} 52... Kc4 {[%clk
0:00:31.6]} 53. b6 {[%clk 0:00:32.7]} 53... Kc5 {[%clk 0:00:32.5]} 54. b7 {[%clk
0:00:32.5]} 54... Kc6 {[%clk 0:00:33.4]} 55. b8=Q {[%clk 0:00:32.1]} 55... Kd7
{[%clk 0:00:34.3]} 56. Qb6 {[%clk 0:00:31.7]} 56... Kc8 {[%clk 0:00:33.7]} 57.
Kb5 {[%clk 0:00:30.5]} 57... Kd7 {[%clk 0:00:33.8]} 58. Kc5 {[%clk 0:00:30.6]}
58... Kc8 {[%clk 0:00:33.7]} 59. Qh6 {[%clk 0:00:30.1]} 59... Kb7 {[%clk
0:00:33.7]} 60. Qg6 {[%clk 0:00:25.8]} 60... Ka7 {[%clk 0:00:33.2]} 61. Kb5
{[%clk 0:00:24.3]} 61... Kb7 {[%clk 0:00:32.9]} 62. Qg7+ {[%clk 0:00:24.1]}
62... Kc8 {[%clk 0:00:33.3]} 63. Kc6 {[%clk 0:00:24.1]} 63... Kd8 {[%clk
0:00:34.2]} 64. Qd7# {[%clk 0:00:23.7]} 1-0

[Event "*** SCC Grand Prix: Titled Tuesday Blitz"]
[Site "Chess.com"]
[Date "2020.07.07"]
[Round "9"]
[White "francyIM"]
[Black "Nikithebest"]
[Result "1-0"]
[WhiteElo "2609"]
[BlackElo "2471"]
[TimeControl "180+1"]
[EndTime "11:47:04 PDT"]
[Termination "francyIM won by resignation"]

1. Nf3 {[%clk 0:03:00.9]} 1... c5 {[%clk 0:02:58.9]} 2. e4 {[%clk 0:02:57.2]}
2... d6 {[%clk 0:02:58.5]} 3. d4 {[%clk 0:02:57]} 3... cxd4 {[%clk 0:02:58.5]}
4. Nxd4 {[%clk 0:02:57.9]} 4... Nf6 {[%clk 0:02:59.1]} 5. Nc3 {[%clk 0:02:58.1]}
5... g6 {[%clk 0:02:59.6]} 6. Be2 {[%clk 0:02:55.8]} 6... Bg7 {[%clk 0:02:58.7]}
7. O-O {[%clk 0:02:56.7]} 7... O-O {[%clk 0:02:57.2]} 8. Nb3 {[%clk 0:02:57.6]}
8... Nc6 {[%clk 0:02:54.5]} 9. Be3 {[%clk 0:02:57.1]} 9... Be6 {[%clk
0:02:51.8]} 10. Qd2 {[%clk 0:02:54.2]} 10... a5 {[%clk 0:02:51.7]} 11. a4 {[%clk
0:02:50.5]} 11... d5 {[%clk 0:02:49.2]} 12. exd5 {[%clk 0:02:46.7]} 12... Nxd5
{[%clk 0:02:49.3]} 13. Nxd5 {[%clk 0:02:44.2]} 13... Qxd5 {[%clk 0:02:49.6]} 14.
Nc5 {[%clk 0:02:43.7]} 14... Qxd2 {[%clk 0:02:43.6]} 15. Bxd2 {[%clk 0:02:44.6]}
15... Bf5 {[%clk 0:02:32]} 16. c3 {[%clk 0:02:43.5]} 16... b6 {[%clk 0:02:30.5]}
17. Nb3 {[%clk 0:02:41.4]} 17... Rfd8 {[%clk 0:02:15.8]} 18. Be3 {[%clk
0:02:37.6]} 18... Rab8 {[%clk 0:02:10.8]} 19. Bb5 {[%clk 0:02:24.8]} 19... Be6
{[%clk 0:02:02.3]} 20. Nd2 {[%clk 0:02:17.5]} 20... Ne5 {[%clk 0:01:59.5]} 21.
Bd4 {[%clk 0:02:16.1]} 21... Ng4 {[%clk 0:01:37.9]} 22. Nf3 {[%clk 0:02:14.9]}
22... Bd5 {[%clk 0:01:35.6]} 23. Bxg7 {[%clk 0:02:12.6]} 23... Kxg7 {[%clk
0:01:36.5]} 24. Nd4 {[%clk 0:02:12.5]} 24... e5 {[%clk 0:01:34]} 25. Ne2 {[%clk
0:02:05.6]} 25... Bb7 {[%clk 0:01:28.4]} 26. Rfd1 {[%clk 0:02:02.9]} 26... f5
{[%clk 0:01:27.4]} 27. h3 {[%clk 0:02:01.5]} 27... Nf6 {[%clk 0:01:27]} 28. f3
{[%clk 0:02:01.6]} 28... f4 {[%clk 0:01:25.1]} 29. Kf2 {[%clk 0:02:00.7]} 29...
Nd5 {[%clk 0:01:22.7]} 30. Rd3 {[%clk 0:01:51.4]} 30... Ne3 {[%clk 0:01:21.8]}
31. g3 {[%clk 0:01:50.4]} 31... Rxd3 {[%clk 0:01:20.3]} 32. Bxd3 {[%clk
0:01:51.3]} 32... g5 {[%clk 0:01:13.8]} 33. h4 {[%clk 0:01:48.5]} 33... Rd8
{[%clk 0:01:11.1]} 34. Bb5 {[%clk 0:01:46]} 34... Rd1 {[%clk 0:01:01.8]} 35.
Rxd1 {[%clk 0:01:42]} 35... Nxd1+ {[%clk 0:01:02.7]} 36. Ke1 {[%clk 0:01:41.7]}
36... Nxb2 {[%clk 0:00:58.3]} 37. hxg5 {[%clk 0:01:40.6]} 37... Bxf3 {[%clk
0:00:57.5]} 38. gxf4 {[%clk 0:01:39.2]} 38... Bxe2 {[%clk 0:00:57.3]} 39. Kxe2
{[%clk 0:01:40.1]} 39... exf4 {[%clk 0:00:57.6]} 40. Kd2 {[%clk 0:01:38.2]}
40... f3 {[%clk 0:00:51.2]} 41. Kc2 {[%clk 0:01:36.9]} 41... Nxa4 {[%clk
0:00:43.8]} 42. Bxa4 {[%clk 0:01:36.3]} 42... Kg6 {[%clk 0:00:44.7]} 43. Kd3
{[%clk 0:01:35.7]} 43... Kxg5 {[%clk 0:00:45.6]} 44. Ke3 {[%clk 0:01:36.5]}
44... Kg4 {[%clk 0:00:45.8]} 45. Bd1 {[%clk 0:01:36]} 45... a4 {[%clk
0:00:43.1]} 46. Bxf3+ {[%clk 0:01:21.2]} 46... Kg3 {[%clk 0:00:40.2]} 47. Bd5
{[%clk 0:01:13.8]} 47... h5 {[%clk 0:00:33.9]} 48. Kd4 {[%clk 0:01:13.5]} 48...
a3 {[%clk 0:00:31.3]} 49. Kd3 {[%clk 0:01:08.8]} 49... Kf4 {[%clk 0:00:27.9]}
50. Kc2 {[%clk 0:01:08.4]} 50... Ke5 {[%clk 0:00:28.2]} 51. Bh1 {[%clk
0:01:05.6]} 51... Kf4 {[%clk 0:00:20.5]} 52. Kb3 {[%clk 0:01:04.6]} 52... Ke3
{[%clk 0:00:20.1]} 53. Kxa3 {[%clk 0:01:04.2]} 53... Kd3 {[%clk 0:00:15.6]} 54.
Kb4 {[%clk 0:01:03.7]} 54... h4 {[%clk 0:00:15.6]} 55. Bg2 {[%clk 0:01:02.8]}
55... Kd2 {[%clk 0:00:13.3]} 56. c4 {[%clk 0:01:00.4]} 56... Kd3 {[%clk
0:00:13.1]} 57. Bh3 {[%clk 0:01:01.3]} 57... Kd4 {[%clk 0:00:12.4]} 58. Kb5
{[%clk 0:01:01.1]} 58... Kd3 {[%clk 0:00:11.7]} 59. Be6 {[%clk 0:01:00.6]} 59...
Kd4 {[%clk 0:00:11.8]} 60. Kxb6 {[%clk 0:00:58]} 60... h3 {[%clk 0:00:12.3]} 61.
Kb5 {[%clk 0:00:56.7]} 61... h2 {[%clk 0:00:11.3]} 62. Bd5 {[%clk 0:00:57.6]}
1-0

[Event "*** SCC Grand Prix: Titled Tuesday Blitz"]
[Site "Chess.com"]
[Date "2020.07.07"]
[Round "9"]
[White "secretsuperstar7"]
[Black "amatatanav"]
[Result "0-1"]
[WhiteElo "2146"]
[BlackElo "2432"]
[TimeControl "180+1"]
[EndTime "11:47:04 PDT"]
[Termination "amatatanav won on time"]

1. c4 {[%clk 0:03:00.9]} 1... e6 {[%clk 0:02:55.5]} 2. Nc3 {[%clk 0:02:58.7]}
2... d5 {[%clk 0:02:55.7]} 3. e3 {[%clk 0:02:58.4]} 3... Nf6 {[%clk 0:02:46]} 4.
Nf3 {[%clk 0:02:58.1]} 4... Be7 {[%clk 0:02:43.2]} 5. Be2 {[%clk 0:02:55]} 5...
O-O {[%clk 0:02:42.4]} 6. O-O {[%clk 0:02:54.7]} 6... dxc4 {[%clk 0:02:38]} 7.
Bxc4 {[%clk 0:02:53.8]} 7... a6 {[%clk 0:02:38.3]} 8. Ne5 {[%clk 0:02:50.6]}
8... b5 {[%clk 0:02:22.9]} 9. Qf3 {[%clk 0:02:47.2]} 9... Ra7 {[%clk 0:02:21.7]}
10. Bd3 {[%clk 0:02:24.2]} 10... Bb7 {[%clk 0:02:19]} 11. Qh3 {[%clk 0:02:21.9]}
11... Nc6 {[%clk 0:02:03.6]} 12. Ne4 {[%clk 0:02:08.5]} 12... g6 {[%clk
0:01:47.3]} 13. Nxc6 {[%clk 0:01:29.2]} 13... Bxc6 {[%clk 0:01:46.3]} 14. Nxf6+
{[%clk 0:01:28.9]} 14... Bxf6 {[%clk 0:01:47.2]} 15. Bc2 {[%clk 0:01:26.8]}
15... e5 {[%clk 0:01:36.9]} 16. d3 {[%clk 0:01:24.3]} 16... Qd7 {[%clk
0:01:29.9]} 17. Qg3 {[%clk 0:01:17.9]} 17... a5 {[%clk 0:01:05.7]} 18. e4 {[%clk
0:00:58.5]} 18... Bg7 {[%clk 0:01:00.6]} 19. Be3 {[%clk 0:00:55.3]} 19... Raa8
{[%clk 0:01:00.6]} 20. Rad1 {[%clk 0:00:51.3]} 20... Qe7 {[%clk 0:00:46.6]} 21.
f4 {[%clk 0:00:42.8]} 21... exf4 {[%clk 0:00:43.5]} 22. Qxf4 {[%clk 0:00:40.2]}
22... Bxb2 {[%clk 0:00:38.6]} 23. d4 {[%clk 0:00:36.6]} 23... Rae8 {[%clk
0:00:33.9]} 24. d5 {[%clk 0:00:18.8]} 24... Be5 {[%clk 0:00:34.8]} 25. Qf2
{[%clk 0:00:17]} 25... Bd7 {[%clk 0:00:32.5]} 26. Bd3 {[%clk 0:00:17.1]} 26...
c6 {[%clk 0:00:29.5]} 27. Rfe1 {[%clk 0:00:11.3]} 27... Rc8 {[%clk 0:00:16.1]}
28. dxc6 {[%clk 0:00:07.4]} 28... Bxc6 {[%clk 0:00:14.7]} 29. Bc5 {[%clk
0:00:07.5]} 29... Bd6 {[%clk 0:00:13.8]} 30. Bxd6 {[%clk 0:00:07.5]} 30... Qxd6
{[%clk 0:00:14.7]} 31. Bxb5 {[%clk 0:00:07.6]} 31... Qe5 {[%clk 0:00:14.7]} 32.
Bxc6 {[%clk 0:00:07.4]} 32... Rxc6 {[%clk 0:00:15.6]} 33. Rd5 {[%clk 0:00:07.4]}
33... Qc3 {[%clk 0:00:14.7]} 34. Qe3 {[%clk 0:00:04.9]} 34... Qb4 {[%clk
0:00:10.8]} 35. h3 {[%clk 0:00:04.1]} 35... Re6 {[%clk 0:00:10.6]} 36. Rd2
{[%clk 0:00:02.4]} 36... Rxe4 {[%clk 0:00:08.6]} 37. Qxe4 {[%clk 0:00:02.9]}
37... Qxd2 {[%clk 0:00:08.7]} 38. Re2 {[%clk 0:00:03.3]} 38... Qc3 {[%clk
0:00:08.6]} 39. Kh2 {[%clk 0:00:03.2]} 39... Qc7+ {[%clk 0:00:08.3]} 40. Qe5
{[%clk 0:00:03.2]} 40... Qa7 {[%clk 0:00:06.9]} 41. Qd5 {[%clk 0:00:02.7]} 41...
Rb8 {[%clk 0:00:05.9]} 42. Re5 {[%clk 0:00:02.1]} 42... Ra8 {[%clk 0:00:04.9]}
43. Re4 {[%clk 0:00:02]} 43... a4 {[%clk 0:00:05.1]} 44. Rf4 {[%clk 0:00:02.1]}
44... Qc7 {[%clk 0:00:05.3]} 0-1

[Event "*** SCC Grand Prix: Titled Tuesday Blitz"]
[Site "Chess.com"]
[Date "2020.07.07"]
[Round "9"]
[White "amintabatabaei"]
[Black "AnishOnYoutube"]
[Result "1-0"]
[WhiteElo "2947"]
[BlackElo "2807"]
[TimeControl "180+1"]
[EndTime "11:47:05 PDT"]
[Termination "amintabatabaei won on time"]

1. e4 {[%clk 0:02:59]} 1... c5 {[%clk 0:02:56.4]} 2. Nc3 {[%clk 0:02:59.3]} 2...
d6 {[%clk 0:02:55.8]} 3. Nge2 {[%clk 0:02:59.5]} 3... Nf6 {[%clk 0:02:55.5]} 4.
g3 {[%clk 0:02:59.9]} 4... e6 {[%clk 0:02:55.6]} 5. Bg2 {[%clk 0:02:59]} 5...
Nc6 {[%clk 0:02:56.2]} 6. O-O {[%clk 0:02:57.7]} 6... Be7 {[%clk 0:02:56.8]} 7.
d3 {[%clk 0:02:57.1]} 7... O-O {[%clk 0:02:57.1]} 8. f4 {[%clk 0:02:56.8]} 8...
Rb8 {[%clk 0:02:57.5]} 9. a4 {[%clk 0:02:56.6]} 9... a6 {[%clk 0:02:57]} 10. h3
{[%clk 0:02:56.7]} 10... Ne8 {[%clk 0:02:52.5]} 11. g4 {[%clk 0:02:54.3]} 11...
b5 {[%clk 0:02:52.5]} 12. axb5 {[%clk 0:02:51.7]} 12... axb5 {[%clk 0:02:52.2]}
13. Be3 {[%clk 0:02:49.1]} 13... b4 {[%clk 0:02:50.3]} 14. Nb1 {[%clk
0:02:49.4]} 14... Nc7 {[%clk 0:02:47.3]} 15. Nd2 {[%clk 0:02:49.2]} 15... Nb5
{[%clk 0:02:45.1]} 16. Nf3 {[%clk 0:02:46.7]} 16... d5 {[%clk 0:02:43.7]} 17. e5
{[%clk 0:02:42.3]} 17... Bd7 {[%clk 0:02:35.4]} 18. Ng3 {[%clk 0:02:36.1]} 18...
Nbd4 {[%clk 0:02:24.3]} 19. Nxd4 {[%clk 0:01:53.4]} 19... cxd4 {[%clk
0:02:24.2]} 20. Bd2 {[%clk 0:01:52.8]} 20... b3 {[%clk 0:02:20.6]} 21. c3 {[%clk
0:01:50.7]} 21... Qb6 {[%clk 0:02:17.2]} 22. Kh2 {[%clk 0:01:50.4]} 22... dxc3
{[%clk 0:02:09.9]} 23. Bxc3 {[%clk 0:01:51.3]} 23... Nd4 {[%clk 0:02:10.4]} 24.
Qd2 {[%clk 0:01:39.3]} 24... Nc2 {[%clk 0:02:07.8]} 25. f5 {[%clk 0:01:33.7]}
25... Qe3 {[%clk 0:01:50]} 26. Qxe3 {[%clk 0:01:12.1]} 26... Nxe3 {[%clk
0:01:49.7]} 27. Rf2 {[%clk 0:01:08.8]} 27... Ra8 {[%clk 0:01:42.8]} 28. Re1
{[%clk 0:01:04.4]} 28... Nxg2 {[%clk 0:01:16.5]} 29. Kxg2 {[%clk 0:01:03]} 29...
Bh4 {[%clk 0:01:04.3]} 30. Rf4 {[%clk 0:00:50.9]} 30... Rfb8 {[%clk 0:00:53]}
31. Ref1 {[%clk 0:00:48.1]} 31... Bg5 {[%clk 0:00:43.2]} 32. R4f3 {[%clk
0:00:44.8]} 32... Ra2 {[%clk 0:00:41.8]} 33. Ne2 {[%clk 0:00:42.4]} 33... Rc8
{[%clk 0:00:40.8]} 34. Kg3 {[%clk 0:00:38.3]} 34... h5 {[%clk 0:00:26.3]} 35.
gxh5 {[%clk 0:00:33.8]} 35... exf5 {[%clk 0:00:25.5]} 36. Nd4 {[%clk 0:00:33.4]}
36... f4+ {[%clk 0:00:21.2]} 37. Rxf4 {[%clk 0:00:33.7]} 37... Bxf4+ {[%clk
0:00:21.9]} 38. Kxf4 {[%clk 0:00:33.6]} 38... Ba4 {[%clk 0:00:12.2]} 39. Rg1
{[%clk 0:00:27]} 39... Kh7 {[%clk 0:00:10.8]} 40. e6 {[%clk 0:00:24.9]} 40...
fxe6 {[%clk 0:00:09.7]} 41. Nxe6 {[%clk 0:00:25.8]} 41... Rxc3 {[%clk 0:00:10]}
42. bxc3 {[%clk 0:00:25]} 42... b2 {[%clk 0:00:09.8]} 43. Rxg7+ {[%clk
0:00:25.2]} 43... Kh8 {[%clk 0:00:05.3]} 44. Rb7 {[%clk 0:00:25.4]} 44... Bc2
{[%clk 0:00:06]} 45. Rb8+ {[%clk 0:00:22.9]} 45... Kh7 {[%clk 0:00:06.5]} 46.
Ng5+ {[%clk 0:00:21.5]} 46... Kh6 {[%clk 0:00:03.2]} 47. Rb6+ {[%clk 0:00:18.3]}
47... Kg7 {[%clk 0:00:01.5]} 48. h6+ {[%clk 0:00:19.2]} 1-0

[Event "*** SCC Grand Prix: Titled Tuesday Blitz"]
[Site "Chess.com"]
[Date "2020.07.07"]
[Round "9"]
[White "SCIM"]
[Black "Djager97"]
[Result "1-0"]
[WhiteElo "2540"]
[BlackElo "2389"]
[TimeControl "180+1"]
[EndTime "11:47:05 PDT"]
[Termination "SCIM won by checkmate"]

1. d4 {[%clk 0:03:00.9]} 1... d5 {[%clk 0:03:00.4]} 2. c4 {[%clk 0:03:00.4]}
2... e6 {[%clk 0:03:00.4]} 3. Nf3 {[%clk 0:02:59.6]} 3... c6 {[%clk 0:03:00.4]}
4. e3 {[%clk 0:02:58.2]} 4... Nf6 {[%clk 0:03:00.1]} 5. Bd3 {[%clk 0:02:56.8]}
5... Nbd7 {[%clk 0:03:00.6]} 6. b3 {[%clk 0:02:56.7]} 6... Bd6 {[%clk
0:03:00.7]} 7. Bb2 {[%clk 0:02:55.8]} 7... O-O {[%clk 0:02:57.9]} 8. O-O {[%clk
0:02:53.7]} 8... Qe7 {[%clk 0:02:51.8]} 9. Ne5 {[%clk 0:02:52.2]} 9... dxc4
{[%clk 0:02:33.8]} 10. Nxc4 {[%clk 0:02:41.6]} 10... Bc7 {[%clk 0:02:33.6]} 11.
Ba3 {[%clk 0:02:28.4]} 11... c5 {[%clk 0:02:32.4]} 12. Nc3 {[%clk 0:02:25.6]}
12... b6 {[%clk 0:02:23]} 13. Nb5 {[%clk 0:02:13.7]} 13... Bb8 {[%clk 0:02:21]}
14. Qf3 {[%clk 0:02:10.1]} 14... Ba6 {[%clk 0:02:15.5]} 15. Nd2 {[%clk
0:01:43.3]} 15... e5 {[%clk 0:01:07.5]} 16. g3 {[%clk 0:00:41.9]} 16... Bxb5
{[%clk 0:00:45.2]} 17. Bxb5 {[%clk 0:00:40.8]} 17... e4 {[%clk 0:00:45.7]} 18.
Qe2 {[%clk 0:00:35.7]} 18... Bd6 {[%clk 0:00:43.2]} 19. Nc4 {[%clk 0:00:30]}
19... a6 {[%clk 0:00:28.8]} 20. Bc6 {[%clk 0:00:29.9]} 20... Rac8 {[%clk
0:00:23.6]} 21. Bb7 {[%clk 0:00:28.6]} 21... Rb8 {[%clk 0:00:22.4]} 22. Bxa6
{[%clk 0:00:28.2]} 22... Ra8 {[%clk 0:00:18.8]} 23. Nxd6 {[%clk 0:00:23.3]}
23... Qxd6 {[%clk 0:00:19.7]} 24. Bb2 {[%clk 0:00:23.8]} 24... cxd4 {[%clk
0:00:15.1]} 25. Bxd4 {[%clk 0:00:23.7]} 25... Ne5 {[%clk 0:00:15.7]} 26. Bxe5
{[%clk 0:00:23.4]} 26... Qxe5 {[%clk 0:00:15.1]} 27. Bc4 {[%clk 0:00:22.7]}
27... h5 {[%clk 0:00:14.5]} 28. h3 {[%clk 0:00:20.6]} 28... h4 {[%clk
0:00:13.9]} 29. g4 {[%clk 0:00:20.1]} 29... Rad8 {[%clk 0:00:07]} 30. a4 {[%clk
0:00:20.2]} 30... Qg5 {[%clk 0:00:05.8]} 31. Rad1 {[%clk 0:00:19.1]} 31... Nd7
{[%clk 0:00:06]} 32. Qc2 {[%clk 0:00:12.9]} 32... Qg6 {[%clk 0:00:05.6]} 33. Rd5
{[%clk 0:00:11.1]} 33... Nf6 {[%clk 0:00:05.9]} 34. Rf5 {[%clk 0:00:10.1]} 34...
Nxg4 {[%clk 0:00:05.4]} 35. hxg4 {[%clk 0:00:05.8]} 35... Qxg4+ {[%clk
0:00:06.3]} 36. Kh2 {[%clk 0:00:05.2]} 36... Qxf5 {[%clk 0:00:06.9]} 37. Rg1
{[%clk 0:00:04.6]} 37... g6 {[%clk 0:00:04.9]} 38. Rg2 {[%clk 0:00:04.6]} 38...
Qe5+ {[%clk 0:00:05.2]} 39. Kh3 {[%clk 0:00:03.3]} 39... Rd6 {[%clk 0:00:05.3]}
40. Qe2 {[%clk 0:00:02.9]} 40... Rfd8 {[%clk 0:00:05.2]} 41. Qg4 {[%clk
0:00:03]} 41... Rd1 {[%clk 0:00:05]} 42. Qxg6+ {[%clk 0:00:03.1]} 42... Kh8
{[%clk 0:00:04.1]} 43. Qh6# {[%clk 0:00:03.3]} 1-0